lending/lending_fUSD_20240621
["ID","MTS","AMOUNT","RATE_DAILY","PERIOD"]
[330113178,1719003034091,-150.0,0.00020502,4]
[330113179,1719003034101,-846.86,0.00020521,2]
[330113180,1719003034110,-527.36,0.00020521,2]
[330113181,1719003034119,-302.56,0.00020521,2]
[330113182,1719003034129,-300.0,0.00020521,2]
[330113183,1719003034138,-150.0,0.00020521,2]
[330113184,1719003034147,-164.51,0.00020521,2]
[330113185,1719003034156,-150.0,0.00020521,2]
[330113186,1719003034165,-300.0,0.00020521,2]
[330113187,1719003034174,-354.09,0.00020521,2]
[330113188,1719003034183,-300.0,0.00020521,2]
[330113189,1719003034193,-150.0,0.00020521,2]
[330113190,1719003034202,-164.51,0.00020521,2]
[330113191,1719003034211,-354.09,0.00020521,2]
[330113192,1719003034221,-150.0,0.00020521,2]
[330113193,1719003034230,-300.0,0.00020521,2]
[330113194,1719003034239,-843.41,0.00020521,2]
[330113195,1719003034248,-527.5,0.00020521,2]
[330113196,1719003034257,-150.0,0.00020521,2]
[330113197,1719003034267,-150.0,0.00020521,2]
[330113198,1719003034275,-150.0,0.00020521,2]
[330113199,1719003034284,-527.5,0.00020521,2]
[330113200,1719003034293,-150.0,0.00020521,2]
[330113201,1719003034302,-526.31,0.00020521,2]
[330113202,1719003034311,-150.0,0.00020556,4]
[330113203,1719003034320,-1600.0,0.000206,7]
[330113204,1719003034329,-150.0,0.0002061,4]
[330113205,1719003034338,-150.0,0.00020663,4]
[330113206,1719003034347,-300.0,0.000207,7]
[330113207,1719003034356,-150.0,0.00020717,4]
[330113208,1719003034365,-382.96459913,0.00020757,2]
[330113209,1719003034374,-150.0,0.00020771,4]
[330113210,1719003034383,-7114.15230236,0.000208,2]
[330113211,1719003034392,-300.0,0.000208,7]
[330113212,1719003034401,-630.04370297,0.000208,2]
[330113213,1719003034411,-150.0,0.00020825,4]
[330113214,1719003034420,-630.04370295,0.00020825,2]
[330113215,1719003034429,-1366.18456,0.0002084,2]
[330113216,1719003034438,-630.04370295,0.0002085,2]
[330113217,1719003034448,-630.04370295,0.00020875,2]
[330113218,1719003034457,-150.0,0.00020879,4]
[330113219,1719003034466,-184.4312977,0.00020889,2]
[330113220,1719003034475,-33184.64615328,0.00020899,2]
[330113221,1719003034483,-8136.1697,0.000209,2]
[330113222,1719003034494,-1388.59426196,0.000209,2]
[330113223,1719003034502,-501.37719277,0.000209,2]
[330113224,1719003034511,-10000.0,0.000209,2]
[330113225,1719003034520,-22092.93500271,0.000209,2]
[330113226,1719003034529,-210.80470442,0.000209,2]
[330113227,1719003034538,-300.0,0.000209,7]
[330113228,1719003034547,-1000.0,0.000209,2]
[330113229,1719003034556,-1206.9525,0.000209,2]
[330113230,1719003034565,-188.20708037,0.000209,2]
[330113231,1719003034573,-174.01036978,0.000209,2]
[330113232,1719003034585,-3195.84740816,0.000209,2]
[330113233,1719003034595,-7500.0,0.000209,2]
[330113234,1719003034603,-176.86075003,0.000209,2]
[330113235,1719003034612,-630.04370295,0.000209,2]
[330113236,1719003034620,-219.9,0.00020904,3]
[330113237,1719003034630,-1000.0,0.00020923,2]
[330113238,1719003034640,-150.0,0.00020932,4]
[330113239,1719003034649,-184.4312977,0.00020986,2]
[330113240,1719003034658,-184.4312977,0.00020986,2]
[330113241,1719003034670,-293.82305985,0.00020986,4]
[330113242,1719003034680,-299215.64424964,0.00020996,2]
[330113243,1719003035047,-3243.24,0.00020996,2]
[330113245,1719003038707,-291.461117,0.00012403,2]
[330113247,1719003038716,-81.48799977,0.00012639,2]
[330113249,1719003038728,-111.30844303,0.00012639,2]
[330113251,1719003038738,-1602.71686591,0.00018847,2]
[330113253,1719003038769,-3397.28313409,0.00018847,2]
[330113255,1719003038779,-1627.6013862,0.00019905,2]
[330113257,1719003038788,-1549.6007997,0.00020996,2]
[330113260,1719003038803,-473.3383626,0.00020996,2]
[330113262,1719003038815,-2501.78352997,0.00020996,2]
[330113269,1719003038866,-1001.55531049,0.00020996,2]
[330113304,1719003040562,-1366.18456,0.0002082,2]
[330113305,1719003040572,-1366.18456,0.0002098,2]
[330113306,1719003040584,-93593.9843502,0.00020996,2]
[330113307,1719003040599,-6813.3824001,0.00020996,2]
[330113308,1719003043100,-159.85756079,0.00012304,2]
[330113309,1719003043110,-347.30763918,0.00020996,2]
[330113310,1719003043121,-1058.38289253,0.00020996,2]
[330113311,1719003043261,-1514.12,0.00020996,2]
[330113312,1719003043273,-1176.69999223,0.00020996,2]
[330113314,1719003043389,-852.58,0.00020055,2]
[330113315,1719003043399,-753.42,0.00020996,2]
[330113316,1719003043410,-6427.1,0.00020996,2]
[330113323,1719003043602,-520657.12387708,0.00020996,2]
[330113343,1719003209217,157.062205,0.00026,60]
[330113344,1719003212362,157.062205,0.00026,60]
[330113345,1719003215810,157.062205,0.00026,61]
[330113346,1719003216826,157.062205,0.00026,61]
[330113347,1719003223337,157.062205,0.00026,64]
[330113348,1719003224504,151.81,0.00019757,30]
[330113349,1719003228015,157.062205,0.00026,65]
[330113350,1719003237977,157.062205,0.00026,66]
[330113351,1719003248788,156.062205,0.00026,67]
[330113352,1719003328560,10000.0,0.00026,60]
[330113355,1719003350617,10000.0,0.00026,60]
[330113356,1719003381012,9296.0,0.00026,60]
[330113357,1719003550908,-1030.90397676,0.00011085,2]
[330113358,1719003552377,-596.69740944,0.00011085,2]
[330113359,1719003617373,-1024.67974499,0.00011085,2]
[330113360,1719003628178,-63.04200786,0.00011085,2]
[330113361,1719003628200,-756.54817634,0.00011085,2]
[330113362,1719003628861,-523.52197614,0.00011085,2]
[330113363,1719003716428,-591.70485524,0.00011085,2]
[330113371,1719004164252,-1627.6013862,0.00011079,2]
[330113372,1719004164274,-249.62568508,0.00011085,2]
[330113373,1719004164295,-159.85756079,0.00012189,2]
[330113374,1719004164315,-861.96126793,0.00012299,2]
[330113393,1719004231715,-394.95499992,0.00012299,2]
[330113394,1719004231727,-474.63889427,0.00012299,2]
[330113395,1719004231736,-489.49308855,0.00012932,2]
[330113396,1719004231746,-338.86135948,0.00012933,2]
[330113397,1719004231756,-150.0,0.00012936,2]
[330113398,1719004231768,-2396.6276,0.00013002,2]
[330113399,1719004231777,-275.59402071,0.00013082,2]
[330113400,1719004231786,-150.0,0.00013435,2]
[330113401,1719004231795,-363.75372231,0.00014908,2]
[330113402,1719004231805,-1627.6013862,0.00014908,2]
[330113403,1719004231816,-15349.97755796,0.00014999,2]
[330113404,1719004231828,-10795.61311371,0.00014999,2]
[330113438,1719004232521,-1168.59932833,0.00014999,2]
[330113439,1719004232531,-5000.0,0.00015,2]
[330113440,1719004232542,-499.99,0.00015,2]
[330113441,1719004232552,-590.75,0.00015993,2]
[330113442,1719004232561,-2679.75,0.0001804,2]
[330113443,1719004232571,-250.0,0.00018134,2]
[330113444,1719004232580,-590.75,0.00018257,2]
[330113445,1719004232589,-2293.04622777,0.00018448,2]
[330113446,1719004232601,-17811.256461,0.00018448,2]
[330113449,1719004237720,-679.88073173,0.00018448,2]
[330113450,1719004237765,-1119.95985758,0.00018448,2]
[330113451,1719004237860,-2805.40240599,0.00018448,2]
[330113452,1719004237870,-4343.32639984,0.00018458,2]
[330113453,1719004237881,-5656.67360016,0.00018458,2]
[330113454,1719004237891,-250.0,0.0001846,2]
[330113455,1719004237900,-192.8,0.00018504,2]
[330113456,1719004237910,-454.04,0.00018612,2]
[330113457,1719004237919,-4808.98998488,0.00018672,2]
[330113531,1719004239758,-2317.16226982,0.00018672,2]
[330113532,1719004239769,-340.78144659,0.00018672,2]
[330113533,1719004239781,-2421.18629871,0.00018672,2]
[330113534,1719004239792,-1000.0,0.00018985,2]
[330113535,1719004239802,-284.15,0.00019096,2]
[330113536,1719004239812,-180.09,0.00019217,2]
[330113537,1719004239822,-169.54,0.00019612,2]
[330113538,1719004239832,-720.22193745,0.00019725,2]
[330113539,1719004239842,-1000.0,0.00019756,2]
[330113540,1719004239852,-2827.40811708,0.0001989,2]
[330113541,1719004239861,-1000.0,0.00020025,2]
[330113542,1719004239872,-1277.51,0.00020027,2]
[330113543,1719004239882,-569.43,0.00020055,2]
[330113544,1719004239891,-590.75,0.00020521,2]
[330113545,1719004239901,-4891.7275,0.00020696,2]
[330113546,1719004239910,-803.8246,0.00020696,2]
[330113547,1719004239920,-1416.216,0.00020696,2]
[330113548,1719004239929,-330.9619,0.00020696,2]
[330113549,1719004239941,-6365.2337,0.00020696,2]
[330113550,1719004239950,-1000.0,0.00020696,2]
[330113551,1719004239962,-2500.0,0.00020696,2]
[330113552,1719004239973,-1255.2992,0.00020696,2]
[330113553,1719004239984,-159.85756079,0.00020696,2]
[330113554,1719004239993,-745.08,0.00020786,3]
[330113555,1719004240003,-660.11977562,0.00020795,2]
[330113556,1719004240014,-124845.956,0.00020796,2]
[330113557,1719004240023,-4829.8355,0.00020796,2]
[330113558,1719004240032,-500.0,0.00020796,2]
[330113559,1719004240042,-1000.0,0.00020796,2]
[330113560,1719004240051,-1950.46191043,0.00020796,2]
[330113561,1719004240136,-312.3160075,0.00020796,2]
[330113562,1719004240147,-629.96234234,0.00020796,2]
[330113563,1719004240158,-269.38173973,0.00020796,2]
[330113564,1719004240167,-1253.5995,0.00020796,2]
[330113565,1719004240177,-325.59748536,0.00020796,2]
[330113566,1719004240189,-158.69525144,0.000208,2]
[330113567,1719004240199,-161.3773855,0.00020886,2]
[330113568,1719004240209,-150.0,0.00020891,2]
[330113569,1719004240219,-2373.1700286,0.00020895,2]
[330113570,1719004240228,-245000.0,0.00020896,2]
[330113571,1719004240237,-39880.8522,0.00020896,2]
[330113572,1719004240246,-33620.9001,0.00020896,2]
[330113573,1719004240256,-100000.0,0.00020896,2]
[330113574,1719004240265,-1262.77288771,0.00020898,2]
[330113575,1719004240275,-587.72466878,0.00020899,3]
[330113576,1719004240284,-587.72466879,0.00020899,3]
[330113577,1719004240294,-7500.0,0.00020899,2]
[330113579,1719004240303,-254859.15913782,0.00020899,2]
[330113580,1719004240312,-174.01036977,0.00020899,2]
[330113582,1719004240320,-10000.0,0.000209,2]
[330113584,1719004240330,-1000.0,0.000209,2]
[330113586,1719004240340,-186.33834046,0.000209,2]
[330113588,1719004240349,-178.00334687,0.000209,2]
[330113589,1719004240358,-155.94476457,0.000209,2]
[330113590,1719004240367,-325.59748536,0.000209,2]
[330113591,1719004240377,-269.20894973,0.00020978,2]
[330113592,1719004240386,-155.0,0.00020988,2]
[330113593,1719004240395,-161.3773855,0.00020989,2]
[330113594,1719004240404,-4743.30732432,0.00020995,2]
[330113595,1719004240414,-366.0285791,0.00020995,2]
[330113596,1719004240423,-345.95893679,0.00020995,2]
[330113598,1719004240433,-1431.3224,0.00020996,2]
[330113599,1719004240443,-158.21632429,0.00020998,2]
[330113601,1719004240452,-500.0,0.00020998,2]
[330113602,1719004240461,-1126.0,0.00020999,2]
[330113603,1719004240470,-179.60028523,0.00020999,2]
[330113604,1719004240479,-166.33407546,0.00020999,2]
[330113605,1719004240489,-182609.4589081,0.00020999,2]
[330113606,1719004240501,-1596.88006637,0.00020999,2]
[330113607,1719004240513,-2371.47496843,0.00020999,2]
[330113608,1719004240740,-6531.81222999,0.00020999,2]
[330113609,1719004240759,-2090.51531374,0.00020999,2]
[330113610,1719004240771,-12290.05429509,0.00020999,2]
[330113611,1719004240782,-347607.72815463,0.00020999,2]
[330113612,1719004240821,-500.0,0.00020999,2]
[330113613,1719004240833,-1895.43200739,0.00020999,2]
[330113614,1719004240845,-406.44,0.00020999,2]
[330113615,1719004240865,-442.88999996,0.00020999,2]
[330113616,1719004240877,-6671.55597476,0.00020999,2]
[330113617,1719004240889,-309.12639055,0.00020999,2]
[330113636,1719004242935,-1765.648,0.00020999,2]
[330113637,1719004242957,-14435.04513219,0.00020999,2]
[330113638,1719004242971,-17911.6543373,0.00020999,2]
[330113639,1719004242986,-19757.05064113,0.00020999,2]
[330113640,1719004242997,-585.81080821,0.00020999,2]
[330113641,1719004243021,-650.96828781,0.00020999,2]
[330113642,1719004243032,-773.50363265,0.00020999,2]
[330113643,1719004243043,-3829.33041893,0.00020999,2]
[330113644,1719004243056,-7113.01999999,0.00020999,2]
[330113645,1719004243088,-9115.84536801,0.00020999,2]
[330113646,1719004243100,-3292.164575,0.00020999,2]
[330113647,1719004243112,-520657.12387708,0.00020999,2]
[330113648,1719004243123,-11293.4316749,0.00020999,2]
[330113649,1719004243134,-23521.76724492,0.00020999,2]
[330113650,1719004243145,-409.04105604,0.00020999,2]
[330113651,1719004243168,-10184.91313959,0.00020999,2]
[330113659,1719004245778,-890.31731708,0.00020999,2]
[330113668,1719004245893,-256465.84142084,0.00020999,2]
[330113669,1719004245906,-93659.05201912,0.00020999,2]
[330113670,1719004245919,-1445.92125572,0.00020999,2]
[330113671,1719004246015,-2403.57912576,0.00020999,2]
[330113672,1719004246026,-10450.64114262,0.00020999,2]
[330113673,1719004388953,588.40655599,0.00012361,2]
[330113674,1719004418401,660.11977562,0.00012361,2]
[330113675,1719004424635,1751.47366839,0.00012361,2]
[330113676,1719004949404,427.1524,0.00010997,2]
[330113677,1719005031193,1071.78583715,0.00011002,2]
[330113679,1719005091903,720.22193745,0.00011002,2]
[330113680,1719005135714,183.72934714,0.00011002,2]
[330113681,1719005194120,-243.31555116,0.00011097,2]
[330113698,1719005431953,-761.29111331,0.00011052,2]
[330113699,1719005431963,-491.51691083,0.00011057,2]
[330113700,1719005431972,-268.79574159,0.00011079,2]
[330113701,1719005431982,-155.0,0.00012289,2]
[330113702,1719005431992,-720.22193745,0.00012299,2]
[330113703,1719005432001,-286.25840593,0.00012299,2]
[330113704,1719005432011,-155.0,0.00012359,2]
[330113705,1719005432020,-753.4814338,0.00013,2]
[330113706,1719005432029,-450.85107599,0.00013352,2]
[330113707,1719005432038,-252.6517551,0.000137,2]
[330113708,1719005432051,-247.3482449,0.000137,2]
[330113709,1719005432060,-227.49611142,0.00015,2]
[330113710,1719005432092,-379.43752746,0.00015,2]
[330113711,1719005432212,-1071.32430337,0.00015,2]
[330113712,1719005432225,-829.59060237,0.00015,2]
[330113724,1719005437768,-155.0,0.00012299,2]
[330113725,1719005437778,-302.72973876,0.00015,2]
[330113727,1719005437919,-2189.42171662,0.00015,2]
[330113728,1719005437930,-544.8349791,0.0001633,2]
[330113729,1719005437942,-51.4950209,0.0001633,2]
[330113730,1719005437952,-499.99,0.00017808,2]
[330113731,1719005437962,-3341.5,0.0001809,2]
[330113732,1719005437971,-4034.93663155,0.0001812,2]
[330113733,1719005437983,-907.87201028,0.0001812,2]
[330113734,1719005437995,-5057.19135817,0.0001812,2]
[330113735,1719005438005,-2751.0,0.00018257,2]
[330113736,1719005438014,-15590.23,0.00018329,2]
[330113737,1719005438024,-180.09,0.00018371,2]
[330113738,1719005438034,-1235.15,0.00018414,2]
[330113739,1719005438043,-250.0,0.00018556,2]
[330113740,1719005438053,-596.33,0.00018594,2]
[330113741,1719005438062,-500.0,0.0001864,2]
[330113742,1719005438072,-250.0,0.000187,2]
[330113743,1719005438081,-302.02,0.00018764,2]
[330113744,1719005438091,-448.41,0.00018774,2]
[330113745,1719005438102,-200.0,0.00018885,2]
[330113746,1719005438112,-250.0,0.00019178,2]
[330113747,1719005438121,-448.41,0.00019713,2]
[330113748,1719005438131,-1000.0,0.00019808,2]
[330113749,1719005438140,-904.85240355,0.00019999,2]
[330113750,1719005438150,-3889.107,0.00019999,2]
[330113751,1719005438160,-8683.46784778,0.0002,2]
[330113752,1719005438198,-24595.57076934,0.0002,2]
[330113753,1719005438211,-9372.7858059,0.0002,2]
[330113754,1719005438223,-29212.98052615,0.0002,2]
[330113755,1719005438234,-529.12011047,0.0002,2]
[330113756,1719005438245,-2260.05693675,0.0002,2]
[330113757,1719005438257,-334.79946058,0.0002,2]
[330113758,1719005438267,-1188.30096382,0.0002,2]
[330113759,1719005438276,-161.0,0.0002064,2]
[330113760,1719005438286,-448.41,0.00020652,2]
[330113761,1719005438296,-67880.04246048,0.00020696,2]
[330113762,1719005438307,-12338.90693721,0.00020696,2]
[330113763,1719005438319,-333.80672062,0.00020696,2]
[330113776,1719005440046,-265.760515,0.00020696,2]
[330113777,1719005440058,-2123.77016568,0.00020696,2]
[330113778,1719005440070,-3424.5,0.00020696,2]
[330113779,1719005441575,-363.48110228,0.00020696,2]
[330113780,1719005441586,-1900.6234161,0.00020696,2]
[330113781,1719005441598,-763.48000001,0.00020696,2]
[330113782,1719005441610,-8364.0002197,0.00020696,2]
[330113783,1719005441723,-2241.62846292,0.00020696,2]
[330113784,1719005441733,-500.0,0.00020696,2]
[330113785,1719005441742,-30193.69154808,0.00020696,2]
[330113786,1719005441754,-337.21636402,0.00020696,2]
[330113787,1719005441766,-1142.29438184,0.00020696,2]
[330113788,1719005441778,-703.9999999,0.00020696,2]
[330113789,1719005441790,-35180.0,0.00020696,2]
[330113790,1719005441864,-134261.48396007,0.00020696,2]
[330113791,1719005441876,-621.0988213,0.00020696,2]
[330113809,1719005442974,-42560.21492479,0.00020696,2]
[330113811,1719005442984,-500.0,0.00020759,2]
[330113813,1719005442994,-500.0,0.00020768,2]
[330113815,1719005443003,-500.0,0.00020777,2]
[330113817,1719005443012,-500.0,0.00020786,2]
[330113819,1719005443022,-500.0,0.00020794,2]
[330113820,1719005443031,-500.0,0.00020803,2]
[330113821,1719005443041,-500.0,0.00020812,2]
[330113822,1719005443050,-158.80388924,0.0002082,2]
[330113823,1719005443060,-242.03430423,0.0002082,2]
[330113824,1719005443068,-158.80388924,0.0002082,2]
[330113825,1719005443078,-500.0,0.00020821,2]
[330113826,1719005443087,-500.0,0.0002083,2]
[330113827,1719005443096,-500.0,0.00020831,2]
[330113828,1719005443108,-500.0,0.00020838,2]
[330113829,1719005443117,-500.0,0.00020847,2]
[330113830,1719005443126,-160.0,0.00020847,2]
[330113831,1719005443136,-500.0,0.00020856,2]
[330113832,1719005443145,-160.0,0.00020856,2]
[330113833,1719005443154,-596.33,0.00020858,2]
[330113834,1719005443164,-500.0,0.00020865,2]
[330113835,1719005443173,-160.0,0.00020865,2]
[330113836,1719005443182,-418.27,0.00020867,2]
[330113837,1719005443191,-852.58,0.00020867,2]
[330113838,1719005443200,-852.58,0.00020867,2]
[330113839,1719005443208,-852.58,0.00020867,2]
[330113840,1719005443217,-852.58,0.00020867,2]
[330113841,1719005443226,-852.58,0.00020867,2]
[330113842,1719005443235,-418.27,0.00020867,2]
[330113843,1719005443244,-852.58,0.00020867,2]
[330113844,1719005443254,-852.58,0.00020867,2]
[330113845,1719005443263,-418.27,0.00020867,2]
[330113847,1719005443273,-418.27,0.00020867,2]
[330113848,1719005443282,-852.58,0.00020867,2]
[330113850,1719005443291,-155.93,0.00020867,2]
[330113851,1719005443300,-418.27,0.00020867,2]
[330113852,1719005443310,-155.09956307,0.00020873,2]
[330113853,1719005443319,-500.0,0.00020874,2]
[330113854,1719005443328,-160.0,0.00020874,2]
[330113855,1719005443337,-271.56232827,0.00020878,2]
[330113856,1719005443348,-500.0,0.00020882,2]
[330113857,1719005443366,-160.0,0.00020882,2]
[330113858,1719005443375,-271.56232825,0.00020883,2]
[330113859,1719005443384,-271.56232825,0.00020889,2]
[330113860,1719005443393,-500.0,0.00020891,2]
[330113861,1719005443404,-160.0,0.00020891,2]
[330113862,1719005443412,-58000.0,0.00020891,2]
[330113863,1719005443421,-150.0,0.00020896,2]
[330113864,1719005443430,-10000.0,0.00020899,2]
[330113866,1719005443441,-186.33834045,0.00020899,2]
[330113867,1719005443451,-537.3172134,0.00020899,2]
[330113868,1719005443460,-378.479245,0.00020899,2]
[330113869,1719005443469,-317.39050288,0.00020899,2]
[330113870,1719005443479,-7496.71978987,0.00020899,2]
[330113871,1719005443488,-25341.658236,0.000209,2]
[330113872,1719005443497,-500.0,0.000209,2]
[330113873,1719005443508,-160.0,0.000209,2]
[330113874,1719005443517,-58000.0,0.000209,2]
[330113876,1719005443527,-3105.79028967,0.00020978,2]
[330113877,1719005443536,-918.80279174,0.00020978,2]
[330113878,1719005443545,-326.69444584,0.00020995,2]
[330113879,1719005443554,-209.38100041,0.00020998,2]
[330113880,1719005443563,-5907.85263176,0.00020998,2]
[330113881,1719005443572,-285906.80583472,0.00020999,2]
[330113882,1719005443612,-271.56232825,0.00020894,2]
[330113883,1719005443621,-752.26084256,0.00020999,2]
[330113884,1719005443632,-693.45276,0.00020999,2]
[330113885,1719005443644,-301.616,0.00020999,2]
[330113887,1719005443655,-559.40606601,0.00020999,2]
[330113889,1719005443666,-5715.72049197,0.00020999,2]
[330113892,1719005443678,-6462.70172827,0.00020999,2]
[330113893,1719005443689,-10835.57489696,0.00020999,2]
[330113896,1719005443701,-1026.45642444,0.00020999,2]
[330113898,1719005443712,-836.677182,0.00020999,2]
[330113899,1719005443748,-51121.70163161,0.00020999,2]
[330113900,1719005443760,-328.7496445,0.00020999,2]
[330113901,1719005443771,-1747.575,0.00020999,2]
[330113902,1719005443783,-294.14994472,0.00020999,2]
[330113903,1719005443794,-1195.72257606,0.00020999,2]
[330113904,1719005443806,-840.64392545,0.00020999,2]
[330113905,1719005443865,-1779509.51381724,0.00020999,2]
[330113906,1719005443876,-803.82703118,0.00020999,2]
[330113907,1719005443887,-529.10282699,0.00020999,2]
[330113908,1719005443898,-761.90769714,0.00020999,2]
[330113909,1719005443909,-410.82168505,0.00020999,2]
[330113921,1719005446145,-271.56232825,0.00020899,2]
[330113922,1719005446155,-209.38100041,0.00020998,2]
[330113923,1719005446165,-5519.05667134,0.00020999,2]
[330113924,1719005446178,-32313.05553848,0.00020999,2]
[330113925,1719005446191,-774.10747346,0.00020999,2]
[330113926,1719005446203,-1907.67492,0.00020999,2]
[330113927,1719005446216,-492.6422193,0.00020999,2]
[330113928,1719005446764,-5907.85263176,0.00020998,2]
[330113929,1719005446773,-1495.26783594,0.00020999,2]
[330113930,1719005446785,-1002.44274149,0.00020999,2]
[330113931,1719005446796,-33048.83433905,0.00020999,2]
[330113932,1719005446807,-690.600222,0.00020999,2]
[330113933,1719005446924,-11173.27156439,0.00020999,2]
[330113934,1719005446935,-824.59977352,0.00020999,2]
[330113935,1719005446946,-267.2327988,0.00020999,2]
[330113936,1719005446957,-373.49520537,0.00020999,2]
[330113937,1719005446968,-1427.36830522,0.00020999,2]
[330113938,1719005446979,-13513.4435892,0.00020999,2]
[330113939,1719005446990,-235681.67277337,0.00020999,2]
[330113940,1719005447001,-325.13906096,0.00020999,2]
[330113941,1719005447012,-1418.946,0.00020999,2]
[330113942,1719005447023,-2497.79507697,0.00020999,2]
[330113943,1719005447034,-12718.08216078,0.00020999,2]
[330113944,1719005447045,-1313.87865291,0.00020999,2]
[330113945,1719005447056,-2157.37149173,0.00020999,2]
[330113946,1719005447068,-2325.64980315,0.00020999,2]
[330113947,1719005447079,-1383.40857251,0.00020999,2]
[330113948,1719005447090,-2250.53767768,0.00020999,2]
[330113949,1719005447101,-496.12580385,0.00020999,2]
[330113950,1719005447113,-27330.41277066,0.00020999,2]
[330113951,1719005447126,-32344.28612523,0.00020999,2]
[330113952,1719005447137,-103558.94791634,0.00020999,2]
[330113953,1719005447149,-47370.02553739,0.00020999,2]
[330113954,1719005447161,-155527.82433044,0.00020999,2]
[330113962,1719005447290,-184.43129772,0.00020989,2]
[330113964,1719005447299,-138.08864753,0.00020999,2]
[330113966,1719005447310,-1473.88526444,0.00020999,2]
[330113968,1719005447322,-7511.43041172,0.00020999,2]
[330113970,1719005447333,-768.06384375,0.00020999,2]
[330113972,1719005447344,-40987.37472394,0.00020999,2]
[330113975,1719005447358,-1462.76416002,0.00020999,2]
[330113977,1719005447370,-1774.86208729,0.00020999,2]
[330113980,1719005447382,-32951.44758523,0.00020999,2]
[330114066,1719005471774,312.78607599,0.00025086,60]
[330114067,1719005555767,312.78607599,0.00024645,60]
[330114068,1719005689965,312.78607599,0.00024645,60]
[330114070,1719005835078,209.93730037,0.0001,2]
[330114072,1719005867945,152.35,0.00025529,120]
[330114078,1719006559510,-2899.0478,0.000123,2]
[330114082,1719006613482,416.0,0.0002157,120]
[330114095,1719006632100,-922.53142088,0.000123,2]
[330114098,1719006632113,-481.71810404,0.000123,2]
[330114100,1719006632125,-499.40807414,0.000123,2]
[330114102,1719006632138,-789.65,0.000123,2]
[330114116,1719006632639,-360.35116936,0.000123,2]
[330114117,1719006632652,-1262.40110453,0.000123,2]
[330114118,1719006632662,-478.91617959,0.0001241,2]
[330114119,1719006632671,-574.30683092,0.0001251,2]
[330114120,1719006632680,-450.0,0.0001298,2]
[330114121,1719006632689,-167.6,0.00014817,2]
[330114122,1719006632699,-599.41,0.00016767,2]
[330114123,1719006632708,-150.0,0.00017259,2]
[330114124,1719006632717,-300.0,0.00017533,2]
[330114125,1719006632726,-163.8,0.00017534,2]
[330114126,1719006632735,-611.8,0.00017808,2]
[330114127,1719006632744,-23890.0,0.00018524,2]
[330114128,1719006632753,-555.44,0.0001858,2]
[330114129,1719006632764,-555.95,0.00018582,2]
[330114130,1719006632778,-2748.71,0.00018583,2]
[330114131,1719006632789,-200.0,0.00018599,2]
[330114132,1719006632798,-1000.0,0.00018623,2]
[330114133,1719006632807,-2751.0,0.00018624,2]
[330114134,1719006632817,-250.0,0.00018709,2]
[330114135,1719006632826,-250.0,0.00018897,2]
[330114136,1719006632835,-3487.15,0.0001896,2]
[330114137,1719006632845,-210.0,0.00018985,2]
[330114138,1719006632859,-599.41,0.00019031,2]
[330114139,1719006632868,-1000.0,0.00019049,2]
[330114140,1719006632878,-420.0,0.0001914,2]
[330114141,1719006632887,-152.35,0.00019147,2]
[330114142,1719006632896,-250.0,0.00019178,2]
[330114143,1719006632905,-555.95,0.00019511,2]
[330114144,1719006632914,-167.2,0.00019877,2]
[330114145,1719006632923,-418.27,0.00019908,2]
[330114146,1719006632932,-156.3138,0.00019925,2]
[330114147,1719006632941,-852.58,0.00020027,2]
[330114148,1719006632950,-832.02,0.00020027,2]
[330114149,1719006632959,-852.58,0.00020027,2]
[330114150,1719006632968,-418.27,0.00020027,2]
[330114151,1719006632978,-852.58,0.00020027,2]
[330114152,1719006632987,-418.27,0.00020027,2]
[330114153,1719006632997,-852.58,0.00020027,2]
[330114154,1719006633006,-418.27,0.00020027,2]